[Event "*** Titled Tuesday 3|2 Blitz"]
[Site "Chess.com"]
[Date "2015.04.07"]
[Round "1"]
[White "darkknight123456"]
[Black "guillead1"]
[Result "0-1"]
[WhiteElo "2051"]
[BlackElo "2391"]
[TimeControl "180+2"]
[EndTime "11:08:40 PDT"]
[Termination "guillead1 won by resignation"]

1. e4 {[%clk 0:02:56]} 1... g6 {[%clk 0:03:01.9]} 2. d4 {[%clk 0:02:55]} 2...
Bg7 {[%clk 0:03:03.5]} 3. Nc3 {[%clk 0:02:55.5]} 3... c6 {[%clk 0:03:05]} 4. Nf3
{[%clk 0:02:55.9]} 4... d5 {[%clk 0:03:06.5]} 5. h3 {[%clk 0:02:56.7]} 5... Nf6
{[%clk 0:03:07.7]} 6. Bd3 {[%clk 0:02:56.5]} 6... dxe4 {[%clk 0:03:08.4]} 7.
Nxe4 {[%clk 0:02:57.3]} 7... Nxe4 {[%clk 0:03:09.9]} 8. Bxe4 {[%clk 0:02:58.1]}
8... Nd7 {[%clk 0:03:11.8]} 9. O-O {[%clk 0:02:58.9]} 9... O-O {[%clk
0:03:13.3]} 10. Bg5 {[%clk 0:02:56.8]} 10... Qb6 {[%clk 0:03:10.6]} 11. b3
{[%clk 0:02:21.3]} 11... e5 {[%clk 0:03:09.8]} 12. Be3 {[%clk 0:02:03.1]} 12...
Qa5 {[%clk 0:03:00]} 13. dxe5 {[%clk 0:01:47.7]} 13... Nxe5 {[%clk 0:02:58.6]}
14. Nxe5 {[%clk 0:01:22.3]} 14... Qxe5 {[%clk 0:02:58.5]} 15. Qf3 {[%clk
0:01:23.3]} 15... Re8 {[%clk 0:02:44.4]} 16. Rad1 {[%clk 0:01:12.9]} 16... Qa5
{[%clk 0:02:34.8]} 17. a4 {[%clk 0:00:59.7]} 17... Be6 {[%clk 0:02:34.8]} 18.
Bd4 {[%clk 0:00:56.4]} 18... Rad8 {[%clk 0:02:30.7]} 19. Bxg7 {[%clk 0:00:55.2]}
19... Kxg7 {[%clk 0:02:32.6]} 20. Rxd8 {[%clk 0:00:43.5]} 20... Rxd8 {[%clk
0:02:34.5]} 21. Rd1 {[%clk 0:00:44.4]} 21... Rxd1+ {[%clk 0:02:27.3]} 22. Qxd1
{[%clk 0:00:45.2]} 22... Qe5 {[%clk 0:02:28]} 23. Bf3 {[%clk 0:00:43.9]} 23...
a5 {[%clk 0:02:25.3]} 24. Qd2 {[%clk 0:00:44.1]} 24... h5 {[%clk 0:02:23.8]} 25.
h4 {[%clk 0:00:43.2]} 25... Bg4 {[%clk 0:02:21.3]} 26. Bxg4 {[%clk 0:00:39.6]}
26... hxg4 {[%clk 0:02:22.1]} 27. g3 {[%clk 0:00:39.4]} 27... b6 {[%clk
0:02:13.3]} 28. Qg5 {[%clk 0:00:40]} 28... Qe1+ {[%clk 0:02:09]} 29. Kg2 {[%clk
0:00:40.1]} 29... Qe4+ {[%clk 0:02:09.8]} 30. Kg1 {[%clk 0:00:40.9]} 30... Qxc2
{[%clk 0:02:04.1]} 31. Qxg4 {[%clk 0:00:30.3]} 31... Qxb3 {[%clk 0:02:04.9]} 32.
Qd4+ {[%clk 0:00:31.2]} 32... Kh7 {[%clk 0:02:05.4]} 33. h5 {[%clk 0:00:31.4]}
33... Qd1+ {[%clk 0:02:01.5]} 34. Kg2 {[%clk 0:00:31.5]} 34... Qxh5 {[%clk
0:02:02.4]} 35. Qxb6 {[%clk 0:00:31]} 35... Qd5+ {[%clk 0:02:03.3]} 36. f3
{[%clk 0:00:30.4]} 36... Kg7 {[%clk 0:02:04.7]} 37. Qb2+ {[%clk 0:00:30.7]}
37... Kh7 {[%clk 0:02:04]} 38. Qc3 {[%clk 0:00:31.5]} 38... Qa2+ {[%clk
0:01:57.2]} 39. Kh3 {[%clk 0:00:32.2]} 39... Qxa4 {[%clk 0:01:51.4]} 40. g4
{[%clk 0:00:33.1]} 40... Qb5 {[%clk 0:01:51.2]} 41. Qf6 {[%clk 0:00:33.3]} 41...
Qd5 {[%clk 0:01:51.2]} 42. Kh4 {[%clk 0:00:27.5]} 42... a4 {[%clk 0:01:49.3]}
43. Qc3 {[%clk 0:00:26.3]} 43... Qd8+ {[%clk 0:01:44.7]} 44. Kg3 {[%clk
0:00:24.6]} 44... Qd6+ {[%clk 0:01:44.9]} 45. Kh4 {[%clk 0:00:23.9]} 45... a3
{[%clk 0:01:41.6]} 46. Kh3 {[%clk 0:00:20.8]} 46... a2 {[%clk 0:01:39.9]} 47.
Qb2 {[%clk 0:00:21.3]} 47... Qd5 {[%clk 0:01:40.4]} 48. Kg3 {[%clk 0:00:21.1]}
48... c5 {[%clk 0:01:28.6]} 49. Qh2+ {[%clk 0:00:21.9]} 49... Kg7 {[%clk
0:01:29.2]} 50. Qb2+ {[%clk 0:00:23]} 50... Kf8 {[%clk 0:01:26.6]} 51. Qb8+
{[%clk 0:00:23.2]} 51... Ke7 {[%clk 0:01:27.5]} 52. Qc7+ {[%clk 0:00:22.9]}
52... Kf6 {[%clk 0:01:19.6]} 53. Qf4+ {[%clk 0:00:21.7]} 53... Kg7 {[%clk
0:01:19.4]} 54. Qc1 {[%clk 0:00:20.9]} 54... Qe5+ {[%clk 0:01:18.8]} 55. f4
{[%clk 0:00:21]} 55... a1=Q {[%clk 0:01:20.1]} 0-1

[Event "*** Titled Tuesday 3|2 Blitz"]
[Site "Chess.com"]
[Date "2015.04.07"]
[Round "1"]
[White "patzerplay"]
[Black "jcibarra"]
[Result "0-1"]
[WhiteElo "2161"]
[BlackElo "2545"]
[TimeControl "180+2"]
[EndTime "11:08:59 PDT"]
[Termination "jcibarra won on time"]

1. e4 {[%clk 0:02:59.9]} 1... c5 {[%clk 0:02:59.5]} 2. c3 {[%clk 0:03:00.7]}
2... Nf6 {[%clk 0:03:00.1]} 3. e5 {[%clk 0:03:01.4]} 3... Nd5 {[%clk 0:03:01.2]}
4. d4 {[%clk 0:03:03]} 4... cxd4 {[%clk 0:03:03.1]} 5. Nf3 {[%clk 0:03:04.2]}
5... e6 {[%clk 0:03:04.5]} 6. cxd4 {[%clk 0:03:04.6]} 6... d6 {[%clk 0:03:05.9]}
7. Bc4 {[%clk 0:03:06.1]} 7... Nc6 {[%clk 0:03:06.4]} 8. O-O {[%clk 0:03:05.2]}
8... Be7 {[%clk 0:03:07.5]} 9. a3 {[%clk 0:03:06.7]} 9... O-O {[%clk 0:03:08.2]}
10. Bd3 {[%clk 0:02:54.8]} 10... Bd7 {[%clk 0:03:06.5]} 11. Qe2 {[%clk
0:02:55.7]} 11... Na5 {[%clk 0:03:03.5]} 12. Nbd2 {[%clk 0:02:23.5]} 12... Nf4
{[%clk 0:03:02]} 13. Qe4 {[%clk 0:02:15.8]} 13... Nxd3 {[%clk 0:03:01.8]} 14.
Qxd3 {[%clk 0:02:17.7]} 14... Qb6 {[%clk 0:02:55.1]} 15. b4 {[%clk 0:02:18.2]}
15... Nc6 {[%clk 0:02:50.7]} 16. Nc4 {[%clk 0:02:17.3]} 16... Qc7 {[%clk
0:02:41.5]} 17. Ng5 {[%clk 0:02:16.8]} 17... g6 {[%clk 0:02:23.9]} 18. exd6
{[%clk 0:01:34.1]} 18... Bxd6 {[%clk 0:02:24.3]} 19. b5 {[%clk 0:01:30.4]} 19...
Na5 {[%clk 0:02:04.4]} 20. Nxd6 {[%clk 0:01:28.9]} 20... Qxd6 {[%clk 0:02:05.6]}
21. Ne4 {[%clk 0:01:25.1]} 21... Qe7 {[%clk 0:02:00.8]} 22. Bd2 {[%clk
0:01:25.6]} 22... f5 {[%clk 0:01:57.3]} 23. Ng3 {[%clk 0:01:19.4]} 23... b6
{[%clk 0:01:27]} 24. Bb4 {[%clk 0:01:20.3]} 24... Qe8 {[%clk 0:01:28.5]} 25. a4
{[%clk 0:00:57.8]} 25... Rf7 {[%clk 0:01:29.4]} 26. Rac1 {[%clk 0:00:50.4]}
26... Rc8 {[%clk 0:01:30.3]} 27. Ne2 {[%clk 0:00:49.3]} 27... h6 {[%clk
0:01:23.1]} 28. Kh1 {[%clk 0:00:50.5]} 28... Kh7 {[%clk 0:01:23.6]} 29. Ng1
{[%clk 0:00:50.4]} 29... e5 {[%clk 0:01:19.3]} 30. dxe5 {[%clk 0:00:43.2]} 30...
Qxe5 {[%clk 0:01:21.2]} 31. Rxc8 {[%clk 0:00:41.9]} 31... Bxc8 {[%clk
0:01:21.8]} 32. Bc3 {[%clk 0:00:43.2]} 32... Qe8 {[%clk 0:01:12.8]} 33. Re1
{[%clk 0:00:36.8]} 33... Qd7 {[%clk 0:01:04.8]} 34. Qg3 {[%clk 0:00:19.8]} 34...
f4 {[%clk 0:01:04.1]} 35. Qf3 {[%clk 0:00:16.3]} 35... Bb7 {[%clk 0:01:03.3]}
36. Qe2 {[%clk 0:00:16.7]} 36... f3 {[%clk 0:00:56.1]} 37. gxf3 {[%clk
0:00:11.5]} 37... g5 {[%clk 0:00:49.3]} 38. Qe5 {[%clk 0:00:12.4]} 38... Kg6
{[%clk 0:00:46.2]} 39. h4 {[%clk 0:00:11]} 39... Qf5 {[%clk 0:00:26.3]} 40. Qd6+
{[%clk 0:00:08.7]} 40... Kh5 {[%clk 0:00:22.9]} 41. Re3 {[%clk 0:00:03.7]} 41...
Qg4 {[%clk 0:00:19]} 0-1

[Event "*** Titled Tuesday 3|2 Blitz"]
[Site "Chess.com"]
[Date "2015.04.07"]
[Round "1"]
[White "SCIM"]
[Black "Cryptochess"]
[Result "1-0"]
[WhiteElo "2081"]
[BlackElo "2345"]
[TimeControl "180+2"]
[EndTime "11:09:18 PDT"]
[Termination "SCIM won by resignation"]

1. d4 {[%clk 0:02:31.6]} 1... Nf6 {[%clk 0:02:59.1]} 2. c4 {[%clk 0:02:32.5]}
2... e6 {[%clk 0:02:51.8]} 3. Nc3 {[%clk 0:02:33.9]} 3... Bb4 {[%clk 0:02:52.7]}
4. e3 {[%clk 0:02:35.2]} 4... b6 {[%clk 0:02:53.2]} 5. Ne2 {[%clk 0:02:33.7]}
5... Ba6 {[%clk 0:02:53.7]} 6. a3 {[%clk 0:02:33.4]} 6... Bxc3+ {[%clk
0:02:54.7]} 7. Nxc3 {[%clk 0:02:33.5]} 7... d5 {[%clk 0:02:56.3]} 8. b3 {[%clk
0:02:17.2]} 8... O-O {[%clk 0:02:56.4]} 9. Be2 {[%clk 0:02:14.9]} 9... Nc6
{[%clk 0:02:56.2]} 10. O-O {[%clk 0:02:14.6]} 10... dxc4 {[%clk 0:02:53.6]} 11.
Bb2 {[%clk 0:01:57.4]} 11... Na5 {[%clk 0:02:52.2]} 12. b4 {[%clk 0:01:49.7]}
12... Nb3 {[%clk 0:02:43.2]} 13. Rb1 {[%clk 0:01:50.1]} 13... b5 {[%clk
0:02:40.3]} 14. a4 {[%clk 0:01:44.2]} 14... c6 {[%clk 0:02:39.9]} 15. Bf3 {[%clk
0:01:43.1]} 15... Nd5 {[%clk 0:02:34.7]} 16. axb5 {[%clk 0:01:34]} 16... cxb5
{[%clk 0:02:22.7]} 17. Nxd5 {[%clk 0:01:18.4]} 17... exd5 {[%clk 0:02:23.4]} 18.
e4 {[%clk 0:01:19.2]} 18... Bb7 {[%clk 0:02:23]} 19. e5 {[%clk 0:01:15.2]} 19...
Bc8 {[%clk 0:02:11.7]} 20. Bc3 {[%clk 0:01:12.4]} 20... Bf5 {[%clk 0:02:09.6]}
21. Rb2 {[%clk 0:01:12]} 21... Qb6 {[%clk 0:02:02.9]} 22. Re1 {[%clk 0:01:05.3]}
22... Rad8 {[%clk 0:01:58.3]} 23. h4 {[%clk 0:01:01.6]} 23... a5 {[%clk
0:01:36.3]} 24. bxa5 {[%clk 0:00:59.2]} 24... Nxa5 {[%clk 0:01:38.2]} 25. Bb4
{[%clk 0:00:59.3]} 25... Rfe8 {[%clk 0:01:35.3]} 26. Bc5 {[%clk 0:00:59.2]}
26... Qc6 {[%clk 0:01:30.7]} 27. g4 {[%clk 0:00:55.7]} 27... Be4 {[%clk
0:01:19.3]} 28. Be2 {[%clk 0:00:47.1]} 28... Nb3 {[%clk 0:00:42.2]} 29. Rxb3
{[%clk 0:00:45.4]} 29... cxb3 {[%clk 0:00:42]} 30. Qxb3 {[%clk 0:00:47.1]} 30...
Qh6 {[%clk 0:00:37.9]} 31. Qg3 {[%clk 0:00:40.5]} 31... f6 {[%clk 0:00:34.4]}
32. f3 {[%clk 0:00:37.3]} 32... Bc2 {[%clk 0:00:29.5]} 33. Bxb5 {[%clk
0:00:35.9]} 33... fxe5 {[%clk 0:00:18.7]} 34. Bxe8 {[%clk 0:00:34.9]} 34... Rxe8
{[%clk 0:00:20.2]} 35. g5 {[%clk 0:00:28.9]} 35... Qa6 {[%clk 0:00:17]} 36. Rxe5
{[%clk 0:00:27.8]} 36... Qa1+ {[%clk 0:00:16]} 37. Kh2 {[%clk 0:00:26.1]} 37...
Ra8 {[%clk 0:00:14.7]} 38. Qg4 {[%clk 0:00:22.1]} 38... Bg6 {[%clk 0:00:12.3]}
39. Re2 {[%clk 0:00:19.5]} 39... Qc3 {[%clk 0:00:09.5]} 40. h5 {[%clk
0:00:19.7]} 40... Bf7 {[%clk 0:00:05]} 41. g6 {[%clk 0:00:20.2]} 41... hxg6
{[%clk 0:00:05.6]} 42. hxg6 {[%clk 0:00:21.4]} 42... Qd3 {[%clk 0:00:04.8]} 43.
gxf7+ {[%clk 0:00:20.8]} 43... Kh8 {[%clk 0:00:05.3]} 44. Qh5+ {[%clk
0:00:19.8]} 44... Qh7 {[%clk 0:00:06.9]} 45. Re8+ {[%clk 0:00:20.2]} 1-0

[Event "*** Titled Tuesday 3|2 Blitz"]
[Site "Chess.com"]
[Date "2015.04.07"]
[Round "1"]
[White "HansCoolNiemann"]
[Black "GasconJR"]
[Result "0-1"]
[WhiteElo "1833"]
[BlackElo "2265"]
[TimeControl "180+2"]
[EndTime "11:09:33 PDT"]
[Termination "GasconJR won by checkmate"]

1. d4 {[%clk 0:01:47.7]} 1... Nf6 {[%clk 0:02:59.3]} 2. c4 {[%clk 0:01:47.6]}
2... g6 {[%clk 0:03:00]} 3. Nc3 {[%clk 0:01:47.8]} 3... Bg7 {[%clk 0:03:00.6]}
4. e4 {[%clk 0:01:48.2]} 4... d6 {[%clk 0:03:01.9]} 5. Nf3 {[%clk 0:01:49]} 5...
O-O {[%clk 0:03:03.1]} 6. Be2 {[%clk 0:01:50.5]} 6... e5 {[%clk 0:03:04.2]} 7.
dxe5 {[%clk 0:01:52.4]} 7... dxe5 {[%clk 0:03:05.4]} 8. Qxd8 {[%clk 0:01:53.6]}
8... Rxd8 {[%clk 0:03:06.5]} 9. Bg5 {[%clk 0:01:55.1]} 9... Re8 {[%clk
0:03:06.7]} 10. O-O-O {[%clk 0:01:55.6]} 10... c6 {[%clk 0:03:04.4]} 11. Nxe5
{[%clk 0:01:56.2]} 11... Rxe5 {[%clk 0:02:44.1]} 12. Rd8+ {[%clk 0:01:55.2]}
12... Re8 {[%clk 0:02:44.1]} 13. Bxf6 {[%clk 0:01:55.8]} 13... Rxd8 {[%clk
0:02:45.1]} 14. Bxd8 {[%clk 0:01:56.4]} 14... Be6 {[%clk 0:02:45.1]} 15. Bg5
{[%clk 0:01:56.1]} 15... Nd7 {[%clk 0:02:42]} 16. Kc2 {[%clk 0:01:48.9]} 16...
Ne5 {[%clk 0:02:33]} 17. b3 {[%clk 0:01:48.6]} 17... c5 {[%clk 0:02:23.1]} 18.
Nd5 {[%clk 0:01:45.2]} 18... Nc6 {[%clk 0:02:02.7]} 19. Bd3 {[%clk 0:01:40.9]}
19... a5 {[%clk 0:01:44.3]} 20. Nc7 {[%clk 0:01:36.1]} 20... Ra7 {[%clk
0:01:28.7]} 21. Nxe6 {[%clk 0:01:36.3]} 21... fxe6 {[%clk 0:01:29.4]} 22. Be3
{[%clk 0:01:15.5]} 22... b6 {[%clk 0:01:27.8]} 23. f4 {[%clk 0:01:00]} 23...
Nb4+ {[%clk 0:01:28.3]} 24. Kd2 {[%clk 0:00:57.4]} 24... Rd7 {[%clk 0:01:29.9]}
25. a3 {[%clk 0:00:54.4]} 25... Nxd3 {[%clk 0:01:29.6]} 26. Ke2 {[%clk
0:00:54.9]} 26... e5 {[%clk 0:01:27.7]} 27. g3 {[%clk 0:00:50.3]} 27... exf4
{[%clk 0:01:15.8]} 28. gxf4 {[%clk 0:00:52.2]} 28... Bh6 {[%clk 0:01:16.2]} 29.
Rf1 {[%clk 0:00:50.5]} 29... a4 {[%clk 0:01:08.3]} 30. bxa4 {[%clk 0:00:47.9]}
30... Nb2 {[%clk 0:01:05.9]} 31. a5 {[%clk 0:00:48.4]} 31... bxa5 {[%clk
0:01:06.7]} 32. Bxc5 {[%clk 0:00:48.5]} 32... Nxc4 {[%clk 0:01:07.8]} 33. e5
{[%clk 0:00:49.1]} 33... Kf7 {[%clk 0:01:06.6]} 34. Kf3 {[%clk 0:00:37.1]} 34...
Ke6 {[%clk 0:01:06.5]} 35. Rc1 {[%clk 0:00:32.2]} 35... Nxe5+ {[%clk 0:01:06.4]}
36. Ke4 {[%clk 0:00:31.4]} 36... Nd3 {[%clk 0:01:07.1]} 37. Rc3 {[%clk
0:00:30.4]} 37... Nxf4 {[%clk 0:01:04.8]} 38. Be3 {[%clk 0:00:22.4]} 38... g5
{[%clk 0:01:00.9]} 39. Rc6+ {[%clk 0:00:20.7]} 39... Rd6 {[%clk 0:01:01.6]} 40.
Rc5 {[%clk 0:00:21.9]} 40... Nd5 {[%clk 0:00:56.1]} 41. Rxa5 {[%clk 0:00:20.7]}
41... Nxe3 {[%clk 0:00:56]} 42. Kxe3 {[%clk 0:00:21.5]} 42... g4+ {[%clk
0:00:46.9]} 43. Ke4 {[%clk 0:00:21.3]} 43... Bg7 {[%clk 0:00:47.9]} 44. Rh5
{[%clk 0:00:20.8]} 44... h6 {[%clk 0:00:45.3]} 45. Rh4 {[%clk 0:00:21]} 45...
Rd4+ {[%clk 0:00:45.9]} 46. Ke3 {[%clk 0:00:21.9]} 46... Kf5 {[%clk 0:00:41.5]}
47. Rh5+ {[%clk 0:00:21.9]} 47... Kg6 {[%clk 0:00:42.4]} 48. Ra5 {[%clk
0:00:22.7]} 48... Rd1 {[%clk 0:00:41]} 49. Ra4 {[%clk 0:00:22.5]} 49... h5
{[%clk 0:00:41.4]} 50. Ra5 {[%clk 0:00:22.7]} 50... Ra1 {[%clk 0:00:41.1]} 51.
a4 {[%clk 0:00:23.9]} 51... h4 {[%clk 0:00:35.7]} 52. Ra6+ {[%clk 0:00:23.2]}
52... Bf6 {[%clk 0:00:36.4]} 53. a5 {[%clk 0:00:23.9]} 53... g3 {[%clk
0:00:37.3]} 54. hxg3 {[%clk 0:00:24.5]} 54... h3 {[%clk 0:00:38.5]} 55. Kf3
{[%clk 0:00:26.4]} 55... h2 {[%clk 0:00:39.6]} 56. Ra7 {[%clk 0:00:23.3]} 56...
h1=Q+ {[%clk 0:00:39.9]} 57. Ke3 {[%clk 0:00:23.8]} 57... Qg1+ {[%clk
0:00:40.8]} 58. Kd3 {[%clk 0:00:23.9]} 58... Qd4+ {[%clk 0:00:41]} 59. Kc2
{[%clk 0:00:24.3]} 59... Ra2+ {[%clk 0:00:41.9]} 60. Kc1 {[%clk 0:00:22.8]}
60... Qd2+ {[%clk 0:00:41.7]} 61. Kb1 {[%clk 0:00:23.5]} 61... Qb2# {[%clk
0:00:43.4]} 0-1

[Event "*** Titled Tuesday 3|2 Blitz"]
[Site "Chess.com"]
[Date "2015.04.07"]
[Round "1"]
[White "tac49"]
[Black "brauliocuarta"]
[Result "1-0"]
[WhiteElo "2363"]
[BlackElo "2020"]
[TimeControl "180+2"]
[EndTime "11:09:46 PDT"]
[Termination "tac49 won by resignation"]

1. e4 {[%clk 0:02:55.9]} 1... c5 {[%clk 0:02:54.8]} 2. Nf3 {[%clk 0:02:56]} 2...
e6 {[%clk 0:02:55.3]} 3. g3 {[%clk 0:02:55.3]} 3... d5 {[%clk 0:02:49.9]} 4.
exd5 {[%clk 0:02:55.5]} 4... exd5 {[%clk 0:02:50.7]} 5. Bg2 {[%clk 0:02:56.5]}
5... Nc6 {[%clk 0:02:49.2]} 6. O-O {[%clk 0:02:56.8]} 6... Nf6 {[%clk
0:02:50.7]} 7. d4 {[%clk 0:02:57]} 7... Be7 {[%clk 0:02:49.2]} 8. Nc3 {[%clk
0:02:54.3]} 8... O-O {[%clk 0:02:48.7]} 9. dxc5 {[%clk 0:02:54.7]} 9... Bxc5
{[%clk 0:02:46.3]} 10. Bg5 {[%clk 0:02:55.6]} 10... h6 {[%clk 0:02:47.4]} 11.
Bxf6 {[%clk 0:02:53.9]} 11... Qxf6 {[%clk 0:02:49]} 12. Qxd5 {[%clk 0:02:51.1]}
12... Bb6 {[%clk 0:02:41.2]} 13. Rad1 {[%clk 0:02:29]} 13... Bf5 {[%clk
0:02:33.5]} 14. Qb3 {[%clk 0:02:23.6]} 14... Be6 {[%clk 0:02:03.3]} 15. Nd5
{[%clk 0:02:07.3]} 15... Bxd5 {[%clk 0:01:58.1]} 16. Rxd5 {[%clk 0:02:06.1]}
16... Rfe8 {[%clk 0:01:48.5]} 17. Rd2 {[%clk 0:01:42.3]} 17... Rad8 {[%clk
0:01:37.2]} 18. Rxd8 {[%clk 0:01:31.5]} 18... Rxd8 {[%clk 0:01:36.2]} 19. c3
{[%clk 0:01:33.4]} 19... Rd3 {[%clk 0:01:25]} 20. Nh4 {[%clk 0:00:44.9]} 20...
Rd2 {[%clk 0:01:23.6]} 21. Nf3 {[%clk 0:00:44.9]} 21... Rd3 {[%clk 0:01:24]} 22.
Re1 {[%clk 0:00:23.6]} 22... Rxf3 {[%clk 0:01:14.9]} 23. Bxf3 {[%clk 0:00:21.9]}
23... Qxf3 {[%clk 0:01:15.4]} 24. Re8+ {[%clk 0:00:23.1]} 24... Kh7 {[%clk
0:01:15]} 25. Qc2+ {[%clk 0:00:24.4]} 25... g6 {[%clk 0:01:09.5]} 26. Qe2 {[%clk
0:00:25.8]} 26... Qf5 {[%clk 0:00:56.8]} 27. Kg2 {[%clk 0:00:22.2]} 27... h5
{[%clk 0:00:34.7]} 28. Re4 {[%clk 0:00:23]} 28... Qd5 {[%clk 0:00:24.9]} 29. c4
{[%clk 0:00:12.4]} 29... Qc5 {[%clk 0:00:23.1]} 30. Qf3 {[%clk 0:00:08.9]} 30...
Kg7 {[%clk 0:00:17.1]} 31. a3 {[%clk 0:00:07.6]} 31... f5 {[%clk 0:00:14.7]} 32.
Re1 {[%clk 0:00:04.6]} 32... Nd4 {[%clk 0:00:12.9]} 33. Qd5 {[%clk 0:00:05.8]}
33... Qxd5+ {[%clk 0:00:12.5]} 34. cxd5 {[%clk 0:00:07.7]} 34... Kf6 {[%clk
0:00:11.5]} 35. Re8 {[%clk 0:00:07.9]} 35... Nb5 {[%clk 0:00:10.1]} 36. Kf3
{[%clk 0:00:05.7]} 36... Nd6 {[%clk 0:00:10.1]} 37. Re6+ {[%clk 0:00:06.5]}
37... Kf7 {[%clk 0:00:10.5]} 38. Rxd6 {[%clk 0:00:08.4]} 38... Bc5 {[%clk
0:00:10.3]} 39. Re6 {[%clk 0:00:09.1]} 39... b5 {[%clk 0:00:10.2]} 40. Ke2
{[%clk 0:00:10.3]} 40... b4 {[%clk 0:00:10.1]} 41. a4 {[%clk 0:00:10.4]} 41...
g5 {[%clk 0:00:08.8]} 42. f3 {[%clk 0:00:10.8]} 42... g4 {[%clk 0:00:09.1]} 43.
fxg4 {[%clk 0:00:11.1]} 43... hxg4 {[%clk 0:00:10.6]} 44. Ra6 {[%clk 0:00:10.8]}
44... b3 {[%clk 0:00:10.5]} 45. Kd3 {[%clk 0:00:11.5]} 45... Ke7 {[%clk
0:00:10.3]} 46. Kc4 {[%clk 0:00:11.5]} 46... Bg1 {[%clk 0:00:09.4]} 47. Rh6
{[%clk 0:00:12.5]} 47... Kf7 {[%clk 0:00:08.5]} 48. Kxb3 {[%clk 0:00:12.6]}
48... Ke7 {[%clk 0:00:08.6]} 49. Kc4 {[%clk 0:00:12.5]} 49... Kf7 {[%clk
0:00:09.3]} 50. d6 {[%clk 0:00:11.9]} 50... Kg7 {[%clk 0:00:09.2]} 51. d7 {[%clk
0:00:12.4]} 51... Bb6 {[%clk 0:00:09.8]} 52. Rxb6 {[%clk 0:00:12.9]} 1-0

[Event "*** Titled Tuesday 3|2 Blitz"]
[Site "Chess.com"]
[Date "2015.04.07"]
[Round "1"]
[White "esr44"]
[Black "AnthonyWirig"]
[Result "0-1"]
[WhiteElo "2135"]
[BlackElo "2485"]
[TimeControl "180+2"]
[EndTime "11:10:16 PDT"]
[Termination "AnthonyWirig won by resignation"]

1. d4 {[%clk 0:03:01]} 1... Nf6 {[%clk 0:03:00.3]} 2. c4 {[%clk 0:02:59.9]} 2...
e6 {[%clk 0:03:01.4]} 3. Nc3 {[%clk 0:03:00.8]} 3... Bb4 {[%clk 0:03:01.5]} 4.
Nf3 {[%clk 0:03:02.3]} 4... d6 {[%clk 0:02:57.1]} 5. Bg5 {[%clk 0:02:57]} 5...
Nbd7 {[%clk 0:02:46.9]} 6. Qc2 {[%clk 0:02:53.2]} 6... h6 {[%clk 0:02:46.9]} 7.
Bh4 {[%clk 0:02:54.2]} 7... Qe7 {[%clk 0:02:34.4]} 8. e3 {[%clk 0:02:54.4]} 8...
b6 {[%clk 0:02:31.9]} 9. Bd3 {[%clk 0:02:53]} 9... Bb7 {[%clk 0:02:32.9]} 10.
O-O-O {[%clk 0:02:53.8]} 10... Bxc3 {[%clk 0:02:32.2]} 11. Qxc3 {[%clk
0:02:54.4]} 11... g5 {[%clk 0:02:33.6]} 12. Bg3 {[%clk 0:02:55.2]} 12... Ne4
{[%clk 0:02:34.6]} 13. Qc2 {[%clk 0:02:48.8]} 13... f5 {[%clk 0:02:35]} 14. Kb1
{[%clk 0:02:40.5]} 14... O-O-O {[%clk 0:02:35.6]} 15. d5 {[%clk 0:02:21.4]}
15... exd5 {[%clk 0:02:31.1]} 16. cxd5 {[%clk 0:02:22.5]} 16... Ndc5 {[%clk
0:02:13.6]} 17. Bc4 {[%clk 0:02:09.3]} 17... Nxg3 {[%clk 0:02:07.9]} 18. hxg3
{[%clk 0:02:09.2]} 18... Qe4 {[%clk 0:02:09.4]} 19. Nd4 {[%clk 0:01:46]} 19...
Qxc2+ {[%clk 0:02:02.6]} 20. Kxc2 {[%clk 0:01:44.1]} 20... Ne4 {[%clk
0:02:00.7]} 21. Rhf1 {[%clk 0:01:40.1]} 21... Rdf8 {[%clk 0:01:59]} 22. Ne6
{[%clk 0:01:20.3]} 22... Rf6 {[%clk 0:01:57]} 23. b4 {[%clk 0:01:13.7]} 23... g4
{[%clk 0:01:38.3]} 24. Rd4 {[%clk 0:01:12.2]} 24... Ng5 {[%clk 0:01:36.2]} 25.
Nf4 {[%clk 0:00:59]} 25... Re8 {[%clk 0:01:29.7]} 26. Kb2 {[%clk 0:00:50.5]}
26... Re4 {[%clk 0:01:29.5]} 27. Rfd1 {[%clk 0:00:46]} 27... Re7 {[%clk
0:01:27.6]} 28. a4 {[%clk 0:00:39.5]} 28... Ne4 {[%clk 0:01:26.1]} 29. Rf1
{[%clk 0:00:35.8]} 29... Kb8 {[%clk 0:01:27.4]} 30. a5 {[%clk 0:00:36]} 30...
Ng5 {[%clk 0:01:24.1]} 31. a6 {[%clk 0:00:36.3]} 31... Bc8 {[%clk 0:01:23.9]}
32. Bb5 {[%clk 0:00:34.9]} 32... Re4 {[%clk 0:01:21.1]} 33. Rxe4 {[%clk
0:00:33.2]} 33... Nxe4 {[%clk 0:01:16.6]} 34. Kc2 {[%clk 0:00:30.1]} 34... Rf7
{[%clk 0:01:15.1]} 35. Kd3 {[%clk 0:00:28.6]} 35... Re7 {[%clk 0:01:14.2]} 36.
Ne2 {[%clk 0:00:24.8]} 36... Bd7 {[%clk 0:01:09.5]} 37. Bxd7 {[%clk 0:00:23.4]}
37... Rxd7 {[%clk 0:01:11.4]} 38. Nd4 {[%clk 0:00:25.1]} 38... Rf7 {[%clk
0:01:11.5]} 39. Nc6+ {[%clk 0:00:16.7]} 39... Ka8 {[%clk 0:01:12.7]} 40. Nd4
{[%clk 0:00:14.9]} 40... Nf6 {[%clk 0:01:11.9]} 41. Nxf5 {[%clk 0:00:13]} 41...
Nxd5 {[%clk 0:01:11.9]} 42. Nxh6 {[%clk 0:00:14.4]} 42... Rg7 {[%clk 0:01:10.6]}
43. Kc4 {[%clk 0:00:13.2]} 43... Ne7 {[%clk 0:01:09]} 44. f3 {[%clk 0:00:13.1]}
44... Kb8 {[%clk 0:00:56.9]} 45. Nxg4 {[%clk 0:00:13.6]} 45... c6 {[%clk
0:00:55.7]} 46. Rh1 {[%clk 0:00:14.3]} 46... Kc7 {[%clk 0:00:56.4]} 47. Rh8
{[%clk 0:00:14.8]} 47... b5+ {[%clk 0:00:57.6]} 48. Kb3 {[%clk 0:00:14.6]} 48...
Kb6 {[%clk 0:00:58.8]} 49. Re8 {[%clk 0:00:13.6]} 49... Kxa6 {[%clk 0:00:55.3]}
50. e4 {[%clk 0:00:15.1]} 50... c5 {[%clk 0:00:55.8]} 51. bxc5 {[%clk
0:00:15.3]} 51... dxc5 {[%clk 0:00:57.7]} 52. Ne5 {[%clk 0:00:16.2]} 52... Ka5
{[%clk 0:00:54.2]} 53. g4 {[%clk 0:00:17.2]} 53... c4+ {[%clk 0:00:54.5]} 54.
Kc3 {[%clk 0:00:18.2]} 54... Ka4 {[%clk 0:00:54.5]} 55. Rb8 {[%clk 0:00:16.6]}
55... Ng6 {[%clk 0:00:53.5]} 56. Nxg6 {[%clk 0:00:16.1]} 56... Rxg6 {[%clk
0:00:55.4]} 57. e5 {[%clk 0:00:17.4]} 57... a5 {[%clk 0:00:56.5]} 58. Kd4 {[%clk
0:00:17.5]} 58... Rc6 {[%clk 0:00:57.4]} 59. Kd5 {[%clk 0:00:18.6]} 59... Rc7
{[%clk 0:00:57.5]} 60. e6 {[%clk 0:00:20.1]} 60... c3 {[%clk 0:00:58.7]} 61. Kd6
{[%clk 0:00:17.1]} 61... c2 {[%clk 0:00:57.7]} 62. Kxc7 {[%clk 0:00:18.4]} 62...
c1=Q+ {[%clk 0:00:59.2]} 63. Kd7 {[%clk 0:00:18.5]} 63... Qd2+ {[%clk
0:01:00.2]} 64. Ke8 {[%clk 0:00:18.3]} 64... Qd6 {[%clk 0:01:00.6]} 65. Rd8
{[%clk 0:00:16.3]} 65... Qxe6+ {[%clk 0:01:01.4]} 66. Kf8 {[%clk 0:00:18.2]}
66... b4 {[%clk 0:01:02.8]} 67. Re8 {[%clk 0:00:17.3]} 67... Qf6+ {[%clk
0:01:03.4]} 68. Kg8 {[%clk 0:00:18.5]} 68... b3 {[%clk 0:01:04.9]} 69. Rf8
{[%clk 0:00:19.7]} 69... Qg6+ {[%clk 0:01:05.4]} 70. Kh8 {[%clk 0:00:21.1]}
70... b2 {[%clk 0:01:07]} 71. Rf4+ {[%clk 0:00:22.3]} 71... Ka3 {[%clk
0:01:06.5]} 72. Rf5 {[%clk 0:00:22.5]} 72... a4 {[%clk 0:01:06.4]} 73. f4 {[%clk
0:00:22.1]} 73... b1=Q {[%clk 0:01:07.4]} 74. g3 {[%clk 0:00:22.2]} 74... Qb8+
{[%clk 0:01:08]} 0-1